Cogmind - Beta 14 @@@ ROGUE MODE // 2025.01.03 @ 13:39:32 Player: Tereza Result: Destroyed by X-62 Marksman with Gauss Rifle Performance ------------- Evolutions (4) 2000 Regions Visited (16) 3200 Robots Destroyed (283) 1415 Value Destroyed (10327) 10327 Prototype IDs (18) 360 Alien Tech Used (0) 0 Bonus (4835) 4835 TOTAL SCORE: 22137 Bonus ------- High Alert Combat Kills 1733 Follower Combat Kills 1891 Entered Garrisons 400 Used RIF Installer 1000 Met Data Miner 300 Friendly Fire -489 Cogmind --------- Core Integrity 0/850 Matter 7/300 Energy 46/100 System Corruption 8% Temperature Cool (0) Movement Core (1500) Ox29 Location -6/Factory Parts ------- > --- POWER (1) -------- (None) > --- PROPULSION (4) --- (None) > --- UTILITY (8) ------ Huge Storage Unit Graphene Brace (fused) > --- WEAPON (2) ------- Proton Cannon > --- INVENTORY (25) --- High-capacity Matter Pod (0) Improved Sensor Array Long-range Sensor Array Core Analyzer Core Analyzer Improved Kinecellerator Transmission Jammer System Shield Improved System Shield Relay Coupler [NC] (30) Relay Coupler [Grunt] (33) Proton Cannon Magnetic Acceleration Cannon Heavy Rocket Launcher Remote Datajack Peak State ------------ > --- POWER ------------ Reinforced Deuterium Engine > --- PROPULSION ------- Heavy Treads Heavy Treads > --- UTILITY ---------- Huge Storage Unit Experimental Sensor Array Core Analyzer Hardened Heavy Armor Plating Graphene Brace > --- WEAPON ----------- Gauss Rifle Enhanced Gauss Cannon > --- INVENTORY -------- Improved Deuterium Engine Improved Deuterium Engine Armored Treads Armored Treads Armored Treads High-capacity Matter Pod Improved Sensor Array Core Analyzer Core Analyzer Transmission Jammer Improved Medium Armor Plating Hardlight Generator Advanced Hacking Suite System Shield Relay Coupler [NC] Relay Coupler [Grunt] Gauss Rifle Gauss Rifle Mass Driver Heavy Rocket Launcher Heavy Rocket Launcher Heavy Rocket Launcher Datajack Fusion Bomb Trap Fusion Bomb Trap [Rating: 75] Favorites ----------- Power Antimatter Reactor Engine Deuterium Engine Power Core Micro Nuclear Core Reactor Antimatter Reactor Propulsion Light Treads Treads Light Treads Wheel Wheel Utility Huge Storage Unit Device Graphene Brace Storage Huge Storage Unit Processor Core Analyzer Hackware Advanced Hacking Suite Protection Hardened Medium Armor Plating Weapon Improved Light Cannon Energy Gun Spread Laser Energy Cannon Proton Cannon Ballistic Gun Gauss Rifle Ballistic Cannon Improved Light Cannon Launcher Heavy Rocket Launcher Special Weapon Remote Datajack Special Melee Weapon Datajack Build | -11 -10 -9 -9 -8 -8 -8 -7 -7 -7 -7 -7 -7 -7 -7 -6 -6 ------- Run | Yrd Mat Mat Min Mat Gar Mat Fac Was Fac Gar Fac Low Low Dat Pro Fac Slots Evolved 8 | . . 2 . 2 . . 2 . . . . . . . . 2 Power . | . . . . . . . . . . . . . . . . . Propulsion 2 | . . 1 . 1 . . . . . . . . . . . . Utility 6 | . . 1 . 1 . . 2 . . . . . . . . 2 Weapon . | . . . . . . . . . . . . . . . . . Parts Attached 170 | 6 5 21 . 16 12 20 37 4 2 2 4 6 2 2 14 17 Power 12 | 1 1 1 . 1 1 2 1 1 . . . . . . 1 2 Engine 9 | 1 1 1 . 1 1 1 1 . . . . . . . . 2 Core 1 | . . . . . . 1 . . . . . . . . . . Reactor 2 | . . . . . . . . 1 . . . . . . 1 . Propulsion 46 | 2 . 10 . 8 6 7 7 1 . . 2 . . . 3 . Treads 43 | 2 . 10 . 8 6 7 4 1 . . 2 . . . 3 . Leg . | . . . . . . . . . . . . . . . . . Wheel 3 | . . . . . . . 3 . . . . . . . . . Hover . | . . . . . . . . . . . . . . . . . Flight . | . . . . . . . . . . . . . . . . . Utility 53 | 1 4 4 . 4 1 4 13 2 1 1 1 1 . . 8 8 Device 22 | . . . . . . 2 7 . . . . 1 . . 6 6 Storage 7 | 1 3 2 . . . . 1 . . . . . . . . . Processor 3 | . 1 . . 1 . . 1 . . . . . . . . . Hackware 3 | . . . . . . . 1 . . . 1 . . . . 1 Protection 18 | . . 2 . 3 1 2 3 2 1 1 . . . . 2 1 Artifact . | . . . . . . . . . . . . . . . . . Weapon 59 | 2 . 6 . 3 4 7 16 . 1 1 1 5 2 2 2 7 Energy Gun 1 | . . 1 . . . . . . . . . . . . . . Energy Cannon 1 | . . . . . . . . . . . . . . . . 1 Ballistic Gun 19 | 2 . 1 . . 1 5 5 . 1 . . 1 1 1 . 1 Ballistic Cannon 26 | . . 4 . 3 1 1 7 . . 1 . 3 1 1 1 3 Launcher 10 | . . . . . 2 1 2 . . . 1 1 . . 1 2 Special Weapon 1 | . . . . . . . 1 . . . . . . . . . Impact Weapon . | . . . . . . . . . . . . . . . . . Slashing Weapon . | . . . . . . . . . . . . . . . . . Piercing Weapon . | . . . . . . . . . . . . . . . . . Special Melee Weapon 1 | . . . . . . . 1 . . . . . . . . . Unidentified Prototypes 1 | . . . . . . . 1 . . . . . . . . . Parts Lost 45 | . . 3 . . 2 3 11 . . . . . 1 . 4 21 Power 6 | . . 1 . . . 1 1 . . . . . . . . 3 Propulsion 11 | . . 1 . . 1 1 3 . . . . . . . 1 4 Utility 17 | . . . . . 1 1 5 . . . . . . . 3 7 Weapon 11 | . . 1 . . . . 2 . . . . . 1 . . 7 Highest Loss Streak 10 | . . 2 . . 1 2 3 . . . . . 1 . 2 10 To Critical Strikes . | . . . . . . . . . . . . . . . . . Average Slot Usage (%) 90 | . 99 99 100 89 88 81 82 94 91 92 92 92 92 77 97 84 Engine 6 | . 14 10 11 9 9 8 6 3 . . . . . . . . Reactor 1 | . . . . . . . . 3 7 7 7 7 7 7 7 5 Treads 27 | . 28 32 33 36 34 26 20 16 23 23 23 23 23 23 28 18 Device 7 | . . . . . . 2 14 15 15 15 15 15 15 15 19 23 Storage 8 | . 14 11 11 9 9 9 7 7 7 7 7 7 7 7 7 6 Processor 8 | . 13 11 11 9 9 9 7 7 7 7 7 7 7 7 7 5 Protection 8 | . . 10 11 8 9 7 6 11 14 15 11 7 7 7 3 5 Ballistic Gun 7 | . 28 5 . . 1 14 7 7 7 7 7 9 8 . 7 1 Ballistic Cannon 9 | . . 16 22 18 16 3 6 7 7 7 6 4 5 . 6 9 Peak Build Rating 75 | 6 10 19 20 35 43 54 75 64 64 65 69 69 70 70 70 74 Average Rating 44 | 4 9 17 19 31 33 45 65 52 63 64 66 68 68 61 64 65 On Entrance 44 | . 6 10 19 20 35 43 53 42 64 64 65 68 68 70 70 61 Naked Turns . | . . . . . . . . . . . . . . . . . Heaviest Build 138 | 14 89 100 100 119 119 112 138 128 128 130 130 123 120 120 124 131 Greatest Support 140 | 40 40 60 60 80 110 110 140 110 110 110 126 126 126 126 126 112 Greatest Overweight (x) 38 | 2 2 2 1 1 2 1 10 6 1 1 1 . . . 1 38 Average Overweight (x) . | . 1 1 1 1 1 . . 5 1 1 . . . . . 1 Largest Inventory Capacity 25 | 8 25 25 25 25 25 25 25 25 25 25 25 25 25 25 25 25 Average Capacity 24 | 6 20 25 25 25 25 25 25 25 25 25 25 25 25 25 25 25 Most Carried 25 | 4 20 25 25 25 25 25 25 25 25 25 25 25 25 25 25 25 Average Carried 23 | 3 14 24 24 24 24 24 24 24 25 25 25 24 24 25 22 23 Final Capacity 25 | 8 25 25 25 25 25 25 25 25 25 25 25 25 25 25 25 25 Final Carried 25 | 4 20 25 25 25 25 24 20 25 25 25 25 24 25 25 20 15 Class Distribution -------------------- 73% | Mutant 24% | Scavenger-Mutant Dominant Class ---------------- Mutant | -10/Materials Mutant | -9/Materials Mutant | -9/Mines Scavenger-Mutant | -8/Materials Mutant | -8/Garrison Mutant | -8/Materials Mutant | -7/Factory Mutant | -7/Waste Mutant | -7/Factory Scavenger-Mutant | -7/Garrison Commander-Mutant | -7/Factory Scavenger-Mutant | -7/Lower Caves Scavenger-Mutant | -7/Lower Caves Mutant | -7/Data Miner Mutant | -6/Proximity Caves Mutant | -6/Factory Resources | -11 -10 -9 -9 -8 -8 -8 -7 -7 -7 -7 -7 -7 -7 -7 -6 -6 ----------- Run | Yrd Mat Mat Min Mat Gar Mat Fac Was Fac Gar Fac Low Low Dat Pro Fac Matter Collected 8989 | 220 339 894 73 540 801 884 2169 397 62 912 85 530 204 . 433 446 Remotely . | . . . . . . . . . . . . . . . . . Salvage Created 9131 | . 629 1302 140 550 736 1264 2136 . . 652 163 749 62 . 302 446 Parts 521 | . 53 75 6 46 39 89 116 . . 10 14 24 . . 13 36 Haulers Intercepted 10 | . 2 5 . 1 . 1 1 . . . . . . . . . Recyclers Shooed 3 | . . 2 . . . . 1 . . . . . . . . . Parts Field Recycled . | . . . . . . . . . . . . . . . . . Retrieved Matter . | . . . . . . . . . . . . . . . . . Parts Self-Destructed 36 | . . . . . . . . . . . . 16 2 . 18 . Prevented 1 | . . . . . . . . . . . . . 1 . . . Kills | -11 -10 -9 -9 -8 -8 -8 -7 -7 -7 -7 -7 -7 -7 -7 -6 -6 ------- Run | Yrd Mat Mat Min Mat Gar Mat Fac Was Fac Gar Fac Low Low Dat Pro Fac Combat Hostiles Destroyed 214 | . 19 27 4 16 28 29 45 . . 7 7 11 2 . 8 11 Guns 84 | . 19 6 . . 1 23 25 . . 2 1 3 . . 4 . Cannons 105 | . . 21 4 16 22 5 17 . . 5 . 2 2 . 3 8 AOE 25 | . . . . . 5 1 3 . . . 6 6 . . 1 3 Classes Destroyed 20 | . 6 4 1 2 2 2 1 . . . . . . . 1 1 Worker 14 | . 1 1 . 1 . . 10 . . . 1 . . . . . Builder 15 | . . 1 . . . 1 8 . . . . . . . . 5 Tunneler 3 | . . . . 1 . . 2 . . . . . . . . . Hauler 10 | . 2 5 . 1 . 1 1 . . . . . . . . . Recycler 4 | . . 3 . . . . 1 . . . . . . . . . Mechanic 3 | . . 1 . . . . 1 . . . . . . . . 1 Operator 6 | . 2 . . 1 . 3 . . . . . . . . . . Watcher 16 | . 3 3 . . 2 2 4 . . . . . . . . 2 Swarmer 52 | . 12 7 . 4 7 4 7 . . 3 2 3 . . 3 . Cutter 2 | . . . . . 2 . . . . . . . . . . . Grunt 99 | . 7 10 3 5 16 17 25 . . 1 4 6 1 . 3 1 Brawler 5 | . . . 1 . . . 2 . . . . 1 . . 1 . Duelist 1 | . . . . . . 1 . . . . . . . . . . Sentry 32 | . . 10 . 6 . 4 5 . . 3 . . . . . 4 Demolisher 1 | . . . . 1 . . . . . . . . . . . . Specialist 1 | . . . . . . . . . . . . . . . . 1 Hunter 10 | . . . . . 3 2 1 . . . . . 1 . . 3 Programmer 9 | . . . . . . . 5 . . . 1 1 . . . 2 Heavy 1 | . . . . . . 1 . . . . . . . . . . Behemoth 1 | . . . . . . . . . . . . . . . 1 . Surgeon 1 | . . . . . . . . . . . . . . . 1 . Best Kill Streak 12 | . 5 4 2 3 7 8 12 . . 2 7 10 1 . 3 7 Combat Bots Only 9 | . 5 4 2 3 7 8 4 . . 2 6 9 1 . 3 4 Max Kills in Single Turn 3 | . 2 2 1 2 3 1 3 . . 1 2 3 1 . 1 3 Gunslinging 1 | . 1 . . . . . . . . . . . . . . . Exploded 3 | . . . . . 3 1 1 . . . 2 3 . . 1 2 Melee . | . . . . . . . . . . . . . . . . . Uniques/NPCs Destroyed . | . . . . . . . . . . . . . . . . . Combat | -11 -10 -9 -9 -8 -8 -8 -7 -7 -7 -7 -7 -7 -7 -7 -6 -6 -------- Run | Yrd Mat Mat Min Mat Gar Mat Fac Was Fac Gar Fac Low Low Dat Pro Fac Hostile Shots Fired 1669 | . 62 151 10 79 143 156 478 . . 148 16 24 26 . 74 302 Missed 480 | . 20 33 3 21 33 45 145 . . 51 6 8 4 . 21 90 Damage Taken 15835 | . 425 1511 79 1012 1563 1940 3804 . . 428 172 247 360 . 1191 3103 Core 2069 | . 109 159 25 33 116 175 413 . . 43 20 14 . . 109 853 Absorbed by Shields 1614 | . . . . . . 28 543 . . 388 24 . . . 76 555 Reduced by Siege Mode 100 | . . . . . . . 72 . . . . . . . 28 . Regen/Repaired (Parts) 1265 | . . 283 . 235 . 194 . 103 . 106 14 18 20 . 268 24 Core Remaining (%) 53 | 100 56 . 54 . . 41 . . . . . . . . 14 . Volleys Fired 749 | . 50 101 6 44 75 85 162 . . 95 13 30 19 . 26 43 Largest 2 | . 2 2 2 2 2 2 2 . . 2 2 2 2 . 2 2 Hottest 114 | . 40 104 74 83 83 67 114 . . 81 81 85 87 . 87 101 Shots Fired 1413 | . 100 202 12 85 138 168 318 2 1 147 22 50 31 . 54 83 Gun 662 | . 100 60 . . 4 124 190 1 . 96 9 31 12 . 26 9 Cannon 718 | . . 142 12 85 131 42 120 1 1 51 8 14 19 . 24 68 Launcher 30 | . . . . . 3 2 5 . . . 5 5 . . 4 6 Special 3 | . . . . . . . 3 . . . . . . . . . Kinetic 1371 | . 100 194 12 85 135 166 310 2 1 147 17 45 31 . 50 76 Thermal 8 | . . 8 . . . . . . . . . . . . . . Explosive 30 | . . . . . 3 2 5 . . . 5 5 . . 4 6 Electromagnetic 1 | . . . . . . . . . . . . . . . . 1 Robot Hit Streak 34 | . 12 8 6 7 6 10 34 4 . 12 4 11 9 . 5 13 Robot Miss Streak 10 | . 4 4 1 10 9 7 8 4 5 7 7 10 5 . 5 3 Penetration Max 1 | . . . . . . 1 1 . . . . 1 . . 1 . Secondary Targets 9 | . 3 . . . . 5 1 . . . . . . . . . Max Gunslinging Chain 1 | . 1 . . . . 1 1 . . . . . . . . . Shots Hit Robots 904 | . 63 120 8 56 78 105 224 1 . 104 14 34 17 . 26 54 Core Hits 782 | . 33 59 4 41 91 65 175 5 . 168 23 57 8 . 18 35 Critical Kills 10 | . 1 . . . . 1 2 . . . . 2 2 . 2 . Critical Parts Destroyed 8 | . . . . . . 2 . . . . . 1 4 . . 1 Critical Strikes 42 | . 1 6 . 3 3 3 8 1 . 1 . 3 6 . 3 4 Destroy 20 | . 1 1 . . . 3 2 . . . . 3 6 . 3 1 Blast 22 | . . 5 . 3 3 . 6 1 . 1 . . . . . 3 Melee Attacks . | . . . . . . . . . . . . . . . . . Impact . | . . . . . . . . . . . . . . . . . Slashing . | . . . . . . . . . . . . . . . . . Piercing . | . . . . . . . . . . . . . . . . . Sneak Attacks . | . . . . . . . . . . . . . . . . . Combat Hostiles . | . . . . . . . . . . . . . . . . . Follow-up Attacks . | . . . . . . . . . . . . . . . . . Damage Inflicted 24558 | . 865 2380 155 1078 2105 2428 6730 75 . 2749 946 1208 281 . 955 2603 Guns 9742 | . 859 556 . . 50 1803 3177 39 . 1952 130 556 92 . 446 82 Cannons 10691 | . . 1824 155 1078 1555 421 2790 36 . 797 161 83 189 . 215 1387 Explosions 4105 | . . . . . 500 199 758 . . . 652 569 . . 294 1133 Melee . | . . . . . . . . . . . . . . . . . Ramming 20 | . 6 . . . . 5 5 . . . 3 . . . . 1 Kinetic 20310 | . 859 2285 155 1078 1605 2224 5967 75 . 2749 291 639 281 . 661 1441 Thermal 122 | . . 95 . . . . 27 . . . . . . . . . Explosive 4078 | . . . . . 500 199 731 . . . 652 569 . . 294 1133 Electromagnetic 28 | . . . . . . . . . . . . . . . . 28 Impact . | . . . . . . . . . . . . . . . . . Slashing . | . . . . . . . . . . . . . . . . . Piercing . | . . . . . . . . . . . . . . . . . Highest Corruption 18 | . . . . . . 1 13 13 13 13 13 13 13 13 18 8 Average Corruption 9 | . . . . . . 1 3 13 13 13 13 13 13 13 14 2 Corruption Purged . | . . . . . . . . . . . . . . . . . Corruption Blocked . | . . . . . . . . . . . . . . . . . Effects 301 | . . . . . . 4 35 19 16 92 20 31 27 4 45 8 Message Errors 77 | . . . . . . 1 10 2 4 26 2 4 7 2 14 5 Matter Fused 54 | . . . . . . 2 6 4 5 17 2 3 4 . 10 1 Heat Flow Errors 30 | . . . . . . . 1 2 . 8 6 3 3 1 6 . Energy Discharges 42 | . . . . . . 1 2 3 1 11 5 8 6 1 4 . Parts Rejected 7 | . . . . . . . 2 . 1 1 . 1 . . 2 . Parts Fused 6 | . . . . . . . . 1 1 3 . 1 . . . . Data Loss (minor) 36 | . . . . . . . 3 3 2 13 1 6 3 . 4 1 Data Loss (major) 11 | . . . . . . . 3 1 . 3 1 . 2 . 1 . Misfires 21 | . . . . . . . 4 2 1 5 2 2 2 . 2 1 Alerts 10 | . . . . . . . 2 1 1 3 1 1 . . 1 . Misdirections 3 | . . . . . . . 1 . . 1 . . . . 1 . Weapon Failures 4 | . . . . . . . 1 . . 1 . 2 . . . . Overload Shots . | . . . . . . . . . . . . . . . . . Overflow Damage 298 | . . 12 . 14 6 . 112 . . . 16 . . . . 138 Projectiles 162 | . . 12 . 14 1 . 92 . . . 3 . . . . 40 Explosions 136 | . . . . . 5 . 20 . . . 13 . . . . 98 Melee . | . . . . . . . . . . . . . . . . . Knockbacks 95 | . . 8 1 8 24 6 34 . . 3 2 . . . 1 8 Impact . | . . . . . . . . . . . . . . . . . Kinetic 83 | . . 6 1 8 22 6 26 . . 3 2 . . . 1 8 Secondary 12 | . . 2 . . 2 . 8 . . . . . . . . . Self-Inflicted Damage 374 | . . . . . . . 13 . . . . . . . 50 311 Shots 8 | . . . . . . . 1 . . . . . . . 1 6 Rammed 6 | . 1 . . . . 1 1 . . . 1 . . . . 2 Targets Rammed 6 | . 1 . . . . 1 1 . . . 1 . . . . 2 Kicked . | . . . . . . . . . . . . . . . . . Crushed . | . . . . . . . . . . . . . . . . . Highest Temperature 426 | . . 364 48 288 352 135 426 157 23 295 287 214 387 210 233 150 Average Temperature 83 | . . 62 23 64 112 28 107 65 13 89 73 64 139 107 83 52 Received Heat Transfer 3984 | . 72 525 45 270 630 662 1167 . . 122 7 81 18 . 235 150 Effects 19 | . . 1 . 1 9 . 7 . . . . . 1 . . . Shutdowns 2 | . . . . . . . 2 . . . . . . . . . Energy Bleed 7 | . . 1 . 1 2 . 2 . . . . . 1 . . . Interference 8 | . . . . . 6 . 2 . . . . . . . . . Short Circuit 2 | . . . . . 1 . 1 . . . . . . . . . Siege Activations 6 | . . . . . . . 4 . . 1 . . . . 1 . Total Turns 122 | . . . . . . . 107 . . 5 . . . . 10 . Longest Duration 47 | . . . . . . . 47 . . 5 . . . . 10 . Robots Corrupted . | . . . . . . . . . . . . . . . . . Combat Hostiles . | . . . . . . . . . . . . . . . . . Parts Fried . | . . . . . . . . . . . . . . . . . Impact Corruptions . | . . . . . . . . . . . . . . . . . Robots Melted . | . . . . . . . . . . . . . . . . . Combat Hostiles . | . . . . . . . . . . . . . . . . . Parts Melted 1 | . . . . . . . 1 . . . . . . . . . Heat Transferred 210 | . . 110 . . . . 100 . . . . . . . . . Parts Sabotaged . | . . . . . . . . . . . . . . . . . Parts Stolen . | . . . . . . . . . . . . . . . . . Parts Stripped . | . . . . . . . . . . . . . . . . . Power Chain Reactions . | . . . . . . . . . . . . . . . . . Alert | -11 -10 -9 -9 -8 -8 -8 -7 -7 -7 -7 -7 -7 -7 -7 -6 -6 ------- Run | Yrd Mat Mat Min Mat Gar Mat Fac Was Fac Gar Fac Low Low Dat Pro Fac Peak Influence 2106 | . 375 365 90 218 1477 966 1194 417 527 2106 1492 . . . . 188 Initial 1105 | . . 21 19 . 133 719 273 417 151 228 1105 . . . . . Average 391 | . 161 148 40 91 818 626 238 374 315 1233 1277 . . . . 58 Maximum Alert Level 5 | . 1 1 . 1 4 3 4 2 2 5 4 . . . . . Low Security (%) 48 | 100 68 65 100 84 6 . 56 . 29 . . . . . . 100 Level 1 19 | . 31 34 . 15 11 13 31 21 37 3 . . . . . . Level 2 13 | . . . . . 35 52 4 78 33 17 . . . . . . Level 3 7 | . . . . . 14 34 4 . . 22 . . . . . . Level 4 8 | . . . . . 32 . 3 . . 27 100 . . . . . Level 5 2 | . . . . . . . . . . 28 . . . . . . High Security . | . . . . . . . . . . . . . . . . . Max Security . | . . . . . . . . . . . . . . . . . Squads Dispatched 37 | . 2 . . 9 . 7 11 . . . 3 . . . . 5 Investigation 11 | . 1 . . 2 . 2 4 . . . 1 . . . . 1 Extermination 8 | . . . . . . . 4 . . . 1 . . . . 3 Reinforcement 12 | . 1 . . 3 . 4 2 . . . 1 . . . . 1 Assault 1 | . . . . . . . 1 . . . . . . . . . Garrison 5 | . . . . 4 . 1 . . . . . . . . . . Intercept . | . . . . . . . . . . . . . . . . . Searches Triggered . | . . . . . . . . . . . . . . . . . Data Miner Redirects 1 | . . . . . . . . . . . . . . . . 1 Construction Impeded 4 | . . . . . . 1 2 . . . . . . . . 1 Haulers Reinforced . | . . . . . . . . . . . . . . . . . Active Scanning Responses . | . . . . . . . . . . . . . . . . . Cargo Convoy Interrupts 1 | . . . . . . . . . . . . . . . . 1 Stealth | -11 -10 -9 -9 -8 -8 -8 -7 -7 -7 -7 -7 -7 -7 -7 -6 -6 --------- Run | Yrd Mat Mat Min Mat Gar Mat Fac Was Fac Gar Fac Low Low Dat Pro Fac Distress Signals 20 | . 4 2 . 4 . 4 4 . . . 1 . . . . 1 Communications Jammed . | . . . . . . . . . . . . . . . . . Distress Signals . | . . . . . . . . . . . . . . . . . Times Spotted 367 | . 33 50 6 26 33 38 75 . 3 34 12 8 6 . 12 31 Peak Tracking Total 12 | . 5 6 3 3 6 5 9 . 2 5 4 4 3 . 4 12 Tactical Retreats 28 | . 2 1 1 1 3 1 7 . . 2 2 1 2 . 2 3 Traps | -11 -10 -9 -9 -8 -8 -8 -7 -7 -7 -7 -7 -7 -7 -7 -6 -6 ------- Run | Yrd Mat Mat Min Mat Gar Mat Fac Was Fac Gar Fac Low Low Dat Pro Fac Traps Triggered 38 | . 1 2 . 1 10 6 3 . . 14 1 . . . . . Indirectly . | . . . . . . . . . . . . . . . . . Trap Hack Attempts 17 | . . . . . . . 17 . . . . . . . . . Triggered . | . . . . . . . . . . . . . . . . . Disarmed . | . . . . . . . . . . . . . . . . . Reprogrammed 1 | . . . . . . . 1 . . . . . . . . . Reused 2 | . . . . . . . . . . . . . . . . 2 Traps Extracted . | . . . . . . . . . . . . . . . . . Installed 2 | . . . . . . . . . . . . . . . . 2 Triggered 4 | . . . . . . . . . . . . 1 1 . . 2 Most Traps Carried 2 | . . . . . 2 2 2 2 2 2 2 2 2 2 2 2 Machines | -11 -10 -9 -9 -8 -8 -8 -7 -7 -7 -7 -7 -7 -7 -7 -6 -6 ---------- Run | Yrd Mat Mat Min Mat Gar Mat Fac Was Fac Gar Fac Low Low Dat Pro Fac Machines Disabled 17 | . . . . 1 6 1 4 . 1 3 . . . . . 1 Max in Single Turn 2 | . . . . . 1 . 2 . 1 1 . . . . . 1 Garrison Access 5 | . . . . . . 1 3 . . . . . . . . 1 Garrison Relay 6 | . . . . . 3 . . . . 3 . . . . . . Machines Repaired . | . . . . . . . . . . . . . . . . . Machines Dismantled . | . . . . . . . . . . . . . . . . . Machines Sabotaged . | . . . . . . . . . . . . . . . . . Overloaded Fab Kills . | . . . . . . . . . . . . . . . . . Hacking | -11 -10 -9 -9 -8 -8 -8 -7 -7 -7 -7 -7 -7 -7 -7 -6 -6 --------- Run | Yrd Mat Mat Min Mat Gar Mat Fac Was Fac Gar Fac Low Low Dat Pro Fac Machines Accessed 76 | . 8 11 1 10 4 10 15 . 2 3 4 . . 4 . 4 Terminals 53 | . 7 9 1 8 4 7 7 . 1 3 4 . . . . 2 Fabricators 5 | . . . . . . . 5 . . . . . . . . . Repair Stations 5 | . . 2 . 1 . 1 . . . . . . . . . 1 Recycling Units 1 | . 1 . . . . . . . . . . . . . . . Scanalyzers 1 | . . . . . . 1 . . . . . . . . . . Garrison Access 7 | . . . . 1 . 1 3 . 1 . . . . . . 1 Total Hacks 206 | . 22 38 3 22 6 28 36 . 3 5 7 . . 29 . 7 Successful 106 | . 11 14 2 9 3 13 15 . 2 1 4 . . 29 . 3 Failed 98 | . 10 24 1 12 3 15 21 . 1 4 3 . . . . 4 Catastrophic 26 | . . 6 1 2 2 4 6 . 1 2 1 . . . . 1 Database Lockouts 2 | . 1 . . 1 . . . . . . . . . . . . Manual 76 | . 11 15 2 15 . 15 8 . . 1 7 . . . . 2 Terminals 134 | . 17 34 3 18 6 22 17 . 2 5 7 . . . . 3 Fabricators 15 | . . . . . . . 15 . . . . . . . . . Repair Stations 12 | . . 4 . 3 . 2 . . . . . . . . . 3 Recycling Units 5 | . 5 . . . . . . . . . . . . . . . Scanalyzers 3 | . . . . . . 3 . . . . . . . . . . Garrison Access 8 | . . . . 1 . 1 4 . 1 . . . . . . 1 Terminal Hacks 71 | . 8 9 2 6 3 8 3 . 1 1 1 . . 29 . . Record 11 | . . . . . . . . . . . . . . 11 . . Part Schematic 9 | . . . . 1 . . . . . . . . . 8 . . Robot Schematic 7 | . . . . . . . . . . . . . . 7 . . Robot Analysis 6 | . 3 1 . 2 . . . . . . . . . . . . Prototype ID Bank 8 | . 1 2 . 1 . 1 . . . . . . . 3 . . Open Door 2 | . . . . . 1 . . . . 1 . . . . . . Level Access Points 2 | . . . 1 . . 1 . . . . . . . . . . Branch Access Points 4 | . . 1 1 . . . . . 1 . 1 . . . . . Fabricator Index 1 | . . . . . . . 1 . . . . . . . . . Alert Level 3 | . . 2 . . . 1 . . . . . . . . . . Unreport Threat 5 | . . 2 . . . 3 . . . . . . . . . . Locate Traps 3 | . 2 1 . . . . . . . . . . . . . . Dispatch Records 1 | . . . . 1 . . . . . . . . . . . . Transport Status 1 | . . . . . . . 1 . . . . . . . . . Hauler Manifests 2 | . . . . . . 1 1 . . . . . . . . . Registered Components 2 | . 1 . . 1 . . . . . . . . . . . . Zone Layout 2 | . 1 . . . . 1 . . . . . . . . . . Garrison Registry 1 | . . . . . 1 . . . . . . . . . . . Security Stations 1 | . . . . . 1 . . . . . . . . . . . Fabricator Hacks 7 | . . . . . . . 7 . . . . . . . . . Network Status 2 | . . . . . . . 2 . . . . . . . . . Load Schematic 4 | . . . . . . . 4 . . . . . . . . . Build 1 | . . . . . . . 1 . . . . . . . . . Repair Station Hacks 10 | . . 4 . 2 . 2 . . . . . . . . . 2 Scan Component 5 | . . 2 . 1 . 1 . . . . . . . . . 1 Repair 5 | . . 2 . 1 . 1 . . . . . . . . . 1 Recycling Unit Hacks 3 | . 3 . . . . . . . . . . . . . . . Process 1 | . 1 . . . . . . . . . . . . . . . Report Inventory 1 | . 1 . . . . . . . . . . . . . . . Retrieve Matter 1 | . 1 . . . . . . . . . . . . . . . Scanalyzer 2 | . . . . . . 2 . . . . . . . . . . Insert Component 1 | . . . . . . 1 . . . . . . . . . . Analyze 1 | . . . . . . 1 . . . . . . . . . . Garrison Access Hacks 8 | . . . . 1 . 1 4 . 1 . . . . . . 1 Unlock Access 2 | . . . . 1 . . . . 1 . . . . . . . Seal Access 5 | . . . . . . 1 3 . . . . . . . . 1 Coupler Status 1 | . . . . . . . 1 . . . . . . . . . Unauthorized Hacks 5 | . . 1 . . . . 1 . . . 3 . . . . . Terminals 5 | . . 1 . . . . 1 . . . 3 . . . . . Track 1 | . . . . . . . . . . . 1 . . . . . Botnet 4 | . . 1 . . . . 1 . . . 2 . . . . . Fabricators . | . . . . . . . . . . . . . . . . . Repair Stations . | . . . . . . . . . . . . . . . . . Recycling Units . | . . . . . . . . . . . . . . . . . Scanalyzers . | . . . . . . . . . . . . . . . . . Garrison Access . | . . . . . . . . . . . . . . . . . Data Cores Recovered . | . . . . . . . . . . . . . . . . . Used . | . . . . . . . . . . . . . . . . . Hacking Detections 52 | . 5 10 . 10 2 6 10 . 2 3 2 . . . . 2 Full Trace Events 11 | . 2 1 . . 2 . 4 . . . 1 . . . . 1 Feedback Events . | . . . . . . . . . . . . . . . . . Feedback Blocked . | . . . . . . . . . . . . . . . . . Robot Schematics Acquired 7 | . . . . . . . . . . . . . . 7 . . Robots Built . | . . . . . . . . . . . . . . . . . Authchips . | . . . . . . . . . . . . . . . . . Time . | . . . . . . . . . . . . . . . . . Total Robot Build Rating . | . . . . . . . . . . . . . . . . . Part Schematics Acquired 10 | . . . . 1 . 1 . . . . . . . 8 . . Parts Built 1 | . . . . . . . 1 . . . . . . . . . Authchips . | . . . . . . . . . . . . . . . . . Time 53 | . . . . . . . 53 . . . . . . . . . Total Part Build Rating 6 | . . . . . . . 6 . . . . . . . . . Parts Repaired 5 | . . 2 . 1 . 1 . . . . . . . . . 1 Time 183 | . . 58 . 44 . 38 . . . . . . . . . 43 Parts Recycled . | . . . . . . . . . . . . . . . . . Recycled Matter 287 | . 287 . . . . . . . . . . . . . . . Retrieved Matter 318 | . 318 . . . . . . . . . . . . . . . Retrieved Components . | . . . . . . . . . . . . . . . . . Parts Scanalyzed 1 | . . . . . . 1 . . . . . . . . . . Part Schematics Acquired 1 | . . . . . . 1 . . . . . . . . . . Parts Damaged . | . . . . . . . . . . . . . . . . . Bothacking | -11 -10 -9 -9 -8 -8 -8 -7 -7 -7 -7 -7 -7 -7 -7 -6 -6 ------------ Run | Yrd Mat Mat Min Mat Gar Mat Fac Was Fac Gar Fac Low Low Dat Pro Fac Used RIF Installer 2 | . . . . . 1 . . . . 1 . . . . . . Alert ID Control 1 | . . . . . . . . . . 1 . . . . . . Robots Hacked 1 | . . . . . . . 1 . . . . . . . . . Non-combat . | . . . . . . . . . . . . . . . . . Combat 1 | . . . . . . . 1 . . . . . . . . . Robot Hacks Applied 1 | . . . . . . . 1 . . . . . . . . . streamctrl_high 1 | . . . . . . . 1 . . . . . . . . . Relay Couplers Released 28 | . . . . . 11 . 3 . . 13 . . . . . 1 Machine Destruction 25 | . . . . . 11 . . . . 13 . . . . . 1 Programmers 3 | . . . . . . . 3 . . . . . . . . . Attached 1 | . . . . . . . 1 . . . . . . . . . Fabnet Peak Effective % . | . . . . . . . . . . . . . . . . . Robots Rewired 13 | . . . . . 3 . . . . 10 . . . . . . Allies Hacked . | . . . . . . . . . . . . . . . . . Hacks Repelled . | . . . . . . . . . . . . . . . . . Allies | -11 -10 -9 -9 -8 -8 -8 -7 -7 -7 -7 -7 -7 -7 -7 -6 -6 -------- Run | Yrd Mat Mat Min Mat Gar Mat Fac Was Fac Gar Fac Low Low Dat Pro Fac Total Allies 37 | . . . 2 . 3 . 1 20 . 10 . . . . 1 . Largest Group 20 | . . . 2 2 3 1 1 20 20 20 11 3 3 1 2 . Highest-Rated Group 546 | . . . 47 47 81 31 29 546 546 480 285 81 81 25 120 . Highest-Rated Ally 96 | . . . 31 31 31 31 29 35 35 39 39 28 28 25 96 . Total Orders . | . . . . . . . . . . . . . . . . . Ally Attacks 394 | . . . 5 33 4 17 2 . 41 236 51 . . . 5 . Total Damage 6510 | . . . 64 545 81 254 20 . 872 3592 836 . . . 246 . Kills 65 | . . . 1 5 1 3 . . 9 35 10 . . . 1 . Allies Corrupted 3 | . . . . . . . . . . 2 1 . . . . . Allies Melted 1 | . . . . . . . . . . . . . . . 1 . Intel | -11 -10 -9 -9 -8 -8 -8 -7 -7 -7 -7 -7 -7 -7 -7 -6 -6 ------- Run | Yrd Mat Mat Min Mat Gar Mat Fac Was Fac Gar Fac Low Low Dat Pro Fac Robot Analysis Total 6 | . 3 1 . 2 . . . . . . . . . . . . Derelict Logs Recovered 6 | . . . 1 . . . . . . . . 2 1 . 2 . Drone Launches . | . . . . . . . . . . . . . . . . . Drone Recoveries . | . . . . . . . . . . . . . . . . . Exploration | -11 -10 -9 -9 -8 -8 -8 -7 -7 -7 -7 -7 -7 -7 -7 -6 -6 ------------- Run | Yrd Mat Mat Min Mat Gar Mat Fac Was Fac Gar Fac Low Low Dat Pro Fac Turns Passed 26651 | 66 2521 2888 1244 2776 2197 2478 4883 507 418 2209 504 816 640 131 956 1417 Spaces Moved 10147 | 37 905 1001 426 1038 773 903 1925 281 163 733 215 451 355 79 398 464 Core 11 | 8 . . . . . . . . . . . . . . . 3 Treads 9833 | 29 905 1001 426 1038 773 903 1865 38 163 733 215 451 355 79 398 461 Legs . | . . . . . . . . . . . . . . . . . Wheels 303 | . . . . . . . 60 243 . . . . . . . . Hover . | . . . . . . . . . . . . . . . . . Flight . | . . . . . . . . . . . . . . . . . Fastest Speed 50 | 50 160 240 240 240 240 166 155 155 246 246 160 160 160 160 160 240 Average Speed 226 | 147 256 240 240 243 242 227 215 176 246 246 214 160 160 160 215 251 Slowest Speed 1950 | 160 320 320 240 245 320 246 330 246 246 246 246 160 160 160 240 1950 Overloaded Moves . | . . . . . . . . . . . . . . . . . Propulsion Burnouts . | . . . . . . . . . . . . . . . . . Robots Hopped . | . . . . . . . . . . . . . . . . . Cave-ins Triggered . | . . . . . . . . . . . . . . . . . Exploration Rate (%) 58 | 3 96 83 92 85 71 85 38 97 7 75 11 68 48 68 53 14 Regions Visited 16 Branch Regions 5 Pre-discovered Areas 3 | . . . 1 . . . . . . . . 1 . 1 . . Known Exits Taken 7 | . . 1 1 1 . 1 . . 1 . 1 . . . 1 . Unknown Exits Taken 5 | 1 1 . . . . . . . . . . 1 1 1 . . Scrap Searched 7 | . . . 2 . . . . . . . . 2 2 . 1 . Spaces Dug 6 | . . . . . . . 3 . . . 2 . 1 . . . Terrain Destroyed 372 | . . 2 . 1 5 26 120 . . . 30 71 5 . 59 53 Melee . | . . . . . . . . . . . . . . . . . Projectile 104 | . . 2 . 1 . 2 55 . . . 4 5 5 . 14 16 AOE 268 | . . . . . 5 24 65 . . . 26 66 . . 45 37 Terrain Rammed . | . . . . . . . . . . . . . . . . . Walls Destroyed . | . . . . . . . . . . . . . . . . . Machines Disabled . | . . . . . . . . . . . . . . . . . Actions | -11 -10 -9 -9 -8 -8 -8 -7 -7 -7 -7 -7 -7 -7 -7 -6 -6 --------- Run | Yrd Mat Mat Min Mat Gar Mat Fac Was Fac Gar Fac Low Low Dat Pro Fac Total 12431 | 46 1004 1308 637 1214 961 1177 2344 296 181 1004 238 496 398 85 441 601 Wait 945 | . 15 132 204 89 41 123 175 . 13 74 . . 21 . 4 54 Move 10132 | 36 904 1000 425 1038 771 902 1925 280 163 731 214 450 354 78 397 464 Hop . | . . . . . . . . . . . . . . . . . Pick Up 139 | 4 20 25 1 8 14 21 15 7 1 6 2 4 2 . . 9 Fast Attach 51 | 6 2 9 . 3 4 5 6 3 1 1 . 2 . 2 2 5 Attach 41 | . . 3 . 2 2 6 12 . . . . . 1 . 5 10 Detach 7 | . 1 1 . 1 . 1 1 . . . . . . . . 2 Swap 78 | . 3 9 . 11 6 9 19 1 1 1 4 4 1 . 7 2 Drop 138 | . 8 28 1 18 13 24 11 5 2 6 4 5 . 5 . 8 Fire 749 | . 50 101 6 44 75 85 162 . . 95 13 30 19 . 26 43 Melee . | . . . . . . . . . . . . . . . . . Ram 2 | . . . . . . . . . . . . . . . . 2 Kick . | . . . . . . . . . . . . . . . . . Crush 4 | . 1 . . . . 1 1 . . . 1 . . . . . Escape Stasis 36 | . . . . . 18 . . . . 18 . . . . . . Rewire 90 | . . . . . 17 . . . . 72 . 1 . . . . Trap 19 | . . . . . . . 17 . . . . . . . . 2 Miscellaneous . | . . . . . . . . . . . . . . . . . Route ------- -11/Scrapyard -10/Materials (discovered 4 exits: *Mat x3 / [*Min]) -9/Materials (discovered 4 exits: *Mat x2 / *Min x2) -9/Mines (discovered 2 exits: *Mat x2) -8/Materials (discovered 4 exits: *Fac x3 / Gar) -8/Garrison (discovered 3 exits: *Mat x3) -8/Materials (discovered 3 exits: *Fac x3) -7/Factory -7/Waste -7/Factory (discovered 5 exits: Sto x2 / Low x2 / Gar) -7/Garrison (discovered 3 exits: *Fac x3) -7/Factory (discovered 4 exits: *Sto x2 / *Low x2) -7/Lower Caves -7/Lower Caves -7/Data Miner -6/Proximity Caves -6/Factory (discovered 4 exits: Fac / *Low x2 / Ext) History --------- Turn | Location | Event 15 | -11/Scrapyard | Discovered new exit (range 16) 67 | -11/Scrapyard | Entered Materials 270 | -10/Materials | Discovered new exit (range 16) 302 | -10/Materials | Build established: Mutant 711 | -10/Materials | Central database locked down 1056 | -10/Materials | Discovered new exit (range 7) 1564 | -10/Materials | Discovered new exit (range 17) 2128 | -10/Materials | Discovered new exit (range 11) 2588 | -10/Materials | Entered another Materials area 2588 | -9/Materials | Evolved 2 slots: Propulsion x1, Utility x1 3305 | -9/Materials | Discovered new exit (range 12) 3549 | -9/Materials | Discovered new exit (range 7) 3643 | -9/Materials | Identified exit to Mines 3844 | -9/Materials | Repaired Hrd. Light Armor Plating 4368 | -9/Materials | Repaired Lgt. Treads 4402 | -9/Materials | Discovered new exit (range 17) 5172 | -9/Materials | Discovered new exit (range 5) 5476 | -9/Materials | Entered Mines 5803 | -9/Mines | Identified exit to Materials 6153 | -9/Mines | Learned location of Storage (-7) 6324 | -9/Mines | Found a damaged Exp. Sensor Array with a note attached 6330 | -9/Mines | Found Prototype Device 6720 | -9/Mines | Entered Materials 6720 | -8/Materials | Accompanied by 2 allies 6720 | -8/Materials | Evolved 2 slots: Propulsion x1, Utility x1 6725 | -8/Materials | Led the pair of lost Derelicts to an unsafe place 6772 | -8/Materials | Garrison activated, responded to threat 7354 | -8/Materials | Met 7R-MNS 7431 | -8/Materials | Garrison activated, responded to threat 7503 | -8/Materials | Discovered new exit (range 16) 7914 | -8/Materials | Discovered new exit (range 8) 8093 | -8/Materials | Build established: Scavenger-Mutant 8177 | -8/Materials | Repaired Hrd. Heavy Armor Plating 8515 | -8/Materials | Central database locked down 8710 | -8/Materials | Discovered new exit (range 8) 9496 | -8/Materials | Identified exit to Garrison 9496 | -8/Materials | Entered Garrison 9598 | -8/Garrison | Triggered checkpoint 9648 | -8/Garrison | Garrison Relay disabled 9878 | -8/Garrison | Triggered checkpoint 9926 | -8/Garrison | Destroyed 7 combat bots 10056 | -8/Garrison | Triggered checkpoint 10102 | -8/Garrison | Garrison Relay disabled 10144 | -8/Garrison | Discovered new exit (range 9) 10168 | -8/Garrison | Installed Relay Interface Framework 10364 | -8/Garrison | Build established: Mutant 10475 | -8/Garrison | Discovered new exit (range 13) 10652 | -8/Garrison | Triggered checkpoint 10666 | -8/Garrison | Discovered new exit (range 70) 10666 | -8/Garrison | Discovered new exit (range 76) 10666 | -8/Garrison | Discovered new exit (range 10) 10681 | -8/Garrison | Garrison Relay disabled 10746 | -8/Garrison | Learned Materials security intel 11693 | -8/Garrison | Entered Materials 11693 | -8/Materials | Accompanied by 1 ally 11744 | -8/Materials | Repaired Hvy. Armor Plating 12195 | -8/Materials | Garrison activated, responded to threat 12271 | -8/Materials | Destroyed 8 combat bots 12476 | -8/Materials | Discovered new exit (range 4) 12818 | -8/Materials | Discovered new exit (range 8) 13047 | -8/Materials | Build established: Scavenger-Mutant 13088 | -8/Materials | Identified exit to Factory 13642 | -8/Materials | Build established: Mutant 13818 | -8/Materials | Core integrity fell below 50% 14171 | -8/Materials | Entered Factory 14171 | -7/Factory | Evolved 2 slots: Utility x2 14983 | -7/Factory | Identified Exp. Sensor Array 16235 | -7/Factory | Fabricated Hvy. Treads (x1) 17051 | -7/Factory | Discovered new exit (range 12) 17962 | -7/Factory | Identified exit to Factory 18571 | -7/Factory | First assault squad dispatched 18741 | -7/Factory | System corruption reached 10% 18784 | -7/Factory | Lost 3 parts (1p1n1u) 18882 | -7/Factory | Core integrity fell below 50% 19054 | -7/Factory | Sucked down chute 19054 | -7/Factory | Entered Waste 19055 | -7/Waste | Joined by Warlord forces that had cleared the area 19532 | -7/Waste | Discovered new exit (range 12) 19561 | -7/Waste | Entered Factory 19561 | -7/Factory | Accompanied by 20 allies 19773 | -7/Factory | Identified exit to Storage 19773 | -7/Factory | Identified exit to Lower Caves 19968 | -7/Factory | Identified exit to Garrison 19979 | -7/Factory | Entered Garrison 19979 | -7/Garrison | Accompanied by 18 allies 20055 | -7/Garrison | Triggered checkpoint 20091 | -7/Garrison | Expanded RIF knowledge: Alert ID Control 20140 | -7/Garrison | Build established: Scavenger-Mutant 20412 | -7/Garrison | Discovered new exit (range 8) 20437 | -7/Garrison | Triggered checkpoint 20483 | -7/Garrison | Garrison Relay disabled 20677 | -7/Garrison | Triggered checkpoint 20709 | -7/Garrison | Triggered checkpoint 20809 | -7/Garrison | Triggered checkpoint 20955 | -7/Garrison | Garrison Relay disabled 21112 | -7/Garrison | Lost 6 allies 21121 | -7/Garrison | Triggered checkpoint 21536 | -7/Garrison | Discovered new exit (range 15) 21839 | -7/Garrison | Triggered checkpoint 22023 | -7/Garrison | Triggered checkpoint 22076 | -7/Garrison | Garrison Relay disabled 22151 | -7/Garrison | Discovered new exit (range 10) 22188 | -7/Garrison | Entered Factory 22188 | -7/Factory | Accompanied by 11 allies 22234 | -7/Factory | Build established: Commander-Mutant 22571 | -7/Factory | Lost 3 allies 22647 | -7/Factory | Lost 3 allies 22692 | -7/Factory | Entered Lower Caves 22692 | -7/Lower Caves | Accompanied by 3 allies 22713 | -7/Lower Caves | Destroyed 9 combat bots 22750 | -7/Lower Caves | Build established: Scavenger-Mutant 22998 | -7/Lower Caves | Learned location of Zion (-6) 23017 | -7/Lower Caves | Learned location of 1 exit from Factory 23420 | -7/Lower Caves | Discovered new exit (range 11) 23508 | -7/Lower Caves | Entered another Lower Caves area 23508 | -7/Lower Caves | Accompanied by 3 allies 23654 | -7/Lower Caves | Encountered a Warlord checkpoint 23780 | -7/Lower Caves | Learned Factory emergency access door positions 24069 | -7/Lower Caves | Discovered new exit (range 7) 24148 | -7/Lower Caves | Entered Data Miner 24148 | -7/Data Miner | Accompanied by 1 ally 24148 | -7/Data Miner | Discovered new exit (range 6) 24181 | -7/Data Miner | Met Data Miner 24209 | -7/Data Miner | Learned location of Section 7 (-2) 24209 | -7/Data Miner | Acquired the access code to Warlord's prototype stash 24233 | -7/Data Miner | Received God Mode back door access code from Data Miner 24279 | -7/Data Miner | Entered Proximity Caves 24279 | -6/Proximity Caves | Accompanied by 1 ally 24314 | -6/Proximity Caves | Build established: Mutant 24319 | -6/Proximity Caves | Attracted the attention of an 0b10 checkpoint 24320 | -6/Proximity Caves | Escorted by Enhanced Grunt 24487 | -6/Proximity Caves | Spotted B-75 Beast 24525 | -6/Proximity Caves | Destroyed B-75 Beast 24706 | -6/Proximity Caves | Learned 8 Factory zone layouts 24969 | -6/Proximity Caves | Core integrity fell below 20% 25113 | -6/Proximity Caves | Discovered exit to Factory (range 11) 25235 | -6/Proximity Caves | Entered Factory 25235 | -6/Factory | Evolved 2 slots: Utility x2 25236 | -6/Factory | Identified exit to Lower Caves 25237 | -6/Factory | Identified exit to Factory 25238 | -6/Factory | Identified exit to Extension 25790 | -6/Factory | Incoming investigation squad redirected 25813 | -6/Factory | Repaired Broken Lrn. Sensor Array 26489 | -6/Factory | Cargo convoy interrupted 26551 | -6/Factory | Lost 10 parts (1p3n4u2w) 26618 | -6/Factory | Core integrity fell below 50% 26642 | -6/Factory | Core integrity fell below 20% 26652 | -6/Factory | Destroyed by X-62 Marksman with Gauss Rifle Last Messages --------------- 26630_ Slammed into X-67 Chaingunner. 26630_ Hvy. Rocket Launcher broken. 26630_ Destabilizing: Short circuit. 26630_ Bore Cannon destroyed. 26631_ The unstable cave ceiling collapses. 26632_ K-01 Serf collects debris. 26633_ Broken Hvy. Rocket Launcher destroyed. 26636_ Z6S5 LBE KIZ7>WO2RTBJVIB0UI 26636_ K-01 Serf collects debris. 26637_ The unstable cave ceiling collapses. 26637_ K-01 Serf collects debris. 26642_ The unstable cave ceiling collapses. 26643_ K-01 Serf collects debris. 26644_ R-10 Processor collects Wheel. 26644_ Imp. Hacking Suite destroyed. 26645_ K-01 Serf collects debris. 26648_ R-10 Processor collects Structural Scanner. 26649_ K-01 Serf collects debris. 26652_ Penetrated by Slug. Map ----- +----------------------------------------------------+ | + ????????????????????????????# ???????? | | # # ????????????????????????????# ???????? | | # # ?????????????????? ????????# ^#??????? | | # + ????????????????# ????????# #??????? | | ######## ????????????????# #???????# #??????? | | #?????# # #?# # """" # # | | #?????# # #?# # """" + # | | #?????# # #?# # # ######## | | ##?????####+##### ### ######### ##???### | | #####?????# #???# # #????# ##### | | # #?????# #???# # #????# T | | ####### ##### # #????# "" | | # + # #????# = | | ## ##### # #????# ##### | | ?# #???# # #????### ###???### | | ?# #???# # #??????# #???????# | | ?# ##### ##+############## ##?????## ##??????# | | ?# #???# ## # ######## / ######## | | ?# #???# / % + # | | ##+######## """ "" R% ######## # """ # | | #??# """"" G %# %u############ """ # | | #??# """"" ! " %#! R ## # """ # | | #??# ## # # | | #??########## # * k ## # # | | ########???????????# ## ####+### | | ?#########?????????# p @x k ########+##### ## | | ?#########?????????# % #??????# | | ?## ##?????????# # ###k ############### ## | | ?## ##????????# # ## ## ### | | ?## > ##????????# # ## ## #?# | | ?## ##????????####+## ####??????????????????? | | ?## ##??????????? % ?????????????????????? | | ### ##?????????? ?????????????????????? | | """ ""?????????? ? #????????????????????? | | ## #?????????# ? #????????????????????? | | """" """?????????# ? #????????????????????? | | ### T##?????????# ? #????????????????????? | | #### ##??????????# ??! #????????????????????? | | # #???????????# ??? ? #????????????????????? | | # #???????????? ????? #????????????????????? | | + ###????????????????#??????????????????????? | | " # ???????????????????????????????????????? | | " # ???????????????????????????????????????? | | " # ???????????????????????????????????????? | | #######???????????????????????????????????????? | | #?# ???????????????????????????????????????? | | #?# "" ???????????????????????????????????????? | | "" #?# "T ???????????????????????????????????????? | | "" #?# "" ???????????????????????????????????????? | | " #?# ???????????????????????????????????????? | +----------------------------------------------------+ Best States ------------- Heat Dissipation 61 Energy Generation 21 Energy Capacity 325 Matter Stores 300 Matter Capacity 300 Sight Range 18 Robot Scan Range 20 Terrain Scan Density 10 Armor Coverage 1200 Evasion (%) 40 Core Analysis 6 Recoil Reduction 4 Offensive Hacking 14 Relay Coupler Types 1 Relay Coupler Value 26 Item Schematics ----------------- Huge Storage Unit | -8/Materials | Hacked Hvy. Treads | -8/Materials | Scanalyzed Combat Drone Bay | -7/Data Miner | Free Lgt. Regenerative Plating | -7/Data Miner | Free Cld. Aerolev Unit | -7/Data Miner | Free Exp. Propulsion Shielding | -7/Data Miner | Free Shock Maul | -7/Data Miner | Free Nuclear Pulse Array | -7/Data Miner | Free Adv. Shield Generator | -7/Data Miner | Free Mass Driver | -7/Data Miner | Free Robot Schematics ------------------ G-50 Soldier | -7/Data Miner | Free M-22 Extractor | -7/Data Miner | Free H-66 Slayer | -7/Data Miner | Free A-15 Conveyor | -7/Data Miner | Free B-60 Warrior | -7/Data Miner | Free R-10 Processor | -7/Data Miner | Free Y-54 Guardian | -7/Data Miner | Free Fabricated ------------ Hvy. Treads | x1 | -7/Factory Alien Tech Used ----------------- None Achievements -------------- Can't Touch This Challenges ------------ None Game ------ Seed DirtyMappingArray Manual? 0 Play Time 01:57:56 Cumulative 152.1 hours Start 2025.01.03 @ 11:18:36 End 2025.01.03 @ 13:39:32 Sessions 1 Manual Loads 0 Difficulty Rogue Special Mode None Game No. 188 Rogue 188 Adventurer 0 Explorer 0 Win Type - Total 3 Types 3/0/0/0/0/0/0/0/0 Lore% 68 Gallery% 59 Achievement% 50 Wizard Run 0 Options --------- Layout 1 ASCII 0 Keyboard 1 Movement Numpad Keybinds 0 Fullscreen 1 Font 24/Smallcaps Map View 50x35 Zoom Use 0% Tactical HUD 1 Map Filters NONE Filters NONE Steam 1 RUN: d626580b-b89a-42fa-94dc-d7476ed1d173